Cogmind - Beta 14 @@@ ROGUE MODE // 2025.03.12 @ 17:57:58 Player: Skergy Result: Destroyed by P-60 Hacker with Shock Rifle Performance ------------- Evolutions (0) 0 Regions Visited (3) 600 Robots Destroyed (23) 115 Value Destroyed (656) 656 Prototype IDs (0) 0 Alien Tech Used (0) 0 Bonus (0) 0 TOTAL SCORE: 1371 Bonus ------- None Cogmind --------- Core Integrity 0/250 Matter 280/300 Energy 265/265 System Corruption 1% Temperature Cool (9) Movement Treading (160) Location -9/Recycling Parts ------- > --- POWER (1) -------- Improved Ion Engine > --- PROPULSION (2) --- Light Treads Spiked Treads > --- UTILITY (2) ------ Large Storage Unit Makeshift Light Armor Plating > --- WEAPON (2) ------- Subdweller Machine Gun Hammer > --- INVENTORY (15) --- Ion Engine Improved Ion Engine Large Storage Unit Subdweller Optics Scrap Shield Subdweller Beam Cannon Rocket Launcher Scrap Shield Fragment (47) Peak State ------------ > --- POWER ------------ Ion Engine > --- PROPULSION ------- Spiked Treads Spiked Treads > --- UTILITY ---------- Small Storage Unit Makeshift Light Armor Plating > --- WEAPON ----------- Makeshift Shrapnel Gun Makeshift Shrapnel Gun > --- INVENTORY -------- Ion Engine Spiked Treads Scrap Shield Subdweller Beam Cannon Subdweller Machine Gun Grenade Launcher Hammer [Rating: 19] Favorites ----------- Power Ion Engine Engine Ion Engine Power Core Light Nuclear Core Propulsion Spiked Treads Treads Spiked Treads Wheel Compact Wheel Utility Small Storage Unit Device Improved Heat Sink Storage Small Storage Unit Protection Makeshift Light Armor Plating Weapon Makeshift Shrapnel Gun Ballistic Gun Makeshift Shrapnel Gun Launcher Grenade Launcher Impact Weapon Hammer Build | -11 -10 -10 -9 ------- Run | Yrd Mat Sub Rec Slots Evolved . | . . . . Power . | . . . . Propulsion . | . . . . Utility . | . . . . Weapon . | . . . . Parts Attached 38 | 6 7 15 10 Power 5 | 1 2 . 2 Engine 4 | 1 1 . 2 Core 1 | . 1 . . Reactor . | . . . . Propulsion 9 | 2 2 4 1 Treads 7 | . 2 4 1 Leg . | . . . . Wheel 2 | 2 . . . Hover . | . . . . Flight . | . . . . Utility 8 | 1 2 3 2 Device 1 | . 1 . . Storage 3 | 1 . . 2 Processor . | . . . . Hackware . | . . . . Protection 4 | . 1 3 . Artifact . | . . . . Weapon 16 | 2 1 8 5 Energy Gun . | . . . . Energy Cannon . | . . . . Ballistic Gun 7 | 2 . 4 1 Ballistic Cannon . | . . . . Launcher 4 | . 1 1 2 Special Weapon . | . . . . Impact Weapon 5 | . . 3 2 Slashing Weapon . | . . . . Piercing Weapon . | . . . . Special Melee Weapon . | . . . . Unidentified Prototypes . | . . . . Parts Lost 5 | . 2 2 1 Power . | . . . . Propulsion 2 | . 1 1 . Utility . | . . . . Weapon 3 | . 1 1 1 Highest Loss Streak 2 | . 2 1 1 To Critical Strikes . | . . . . Average Slot Usage (%) 98 | . 96 99 99 Engine 13 | . 12 14 14 Treads 27 | . 24 27 28 Storage 14 | . 14 14 14 Protection 12 | . 9 14 14 Ballistic Gun 16 | . 15 17 14 Launcher 7 | . 12 6 7 Impact Weapon 3 | . . 4 5 Peak Build Rating 19 | 6 11 19 17 Average Rating 13 | 4 7 14 15 On Entrance 7 | . 6 8 16 Naked Turns . | . . . . Heaviest Build 37 | 13 15 19 37 Greatest Support 40 | 32 40 40 40 Greatest Overweight (x) . | . . . . Average Overweight (x) . | . . . . Largest Inventory Capacity 15 | 8 8 8 15 Average Capacity 8 | 6 8 8 9 Most Carried 9 | 6 8 8 9 Average Carried 7 | 3 7 7 8 Final Capacity 15 | 8 8 8 15 Final Carried 9 | 6 8 8 9 Class Distribution -------------------- 54% | Mutant 45% | Derelict-Mutant Dominant Class ---------------- Mutant | -10/Materials Derelict-Mutant | -10/Subcaves Derelict-Mutant | -9/Recycling Resources | -11 -10 -10 -9 ----------- Run | Yrd Mat Sub Rec Matter Collected 958 | 206 88 430 234 Remotely . | . . . . Salvage Created 557 | . 127 267 163 Parts 36 | . 11 19 6 Haulers Intercepted . | . . . . Recyclers Shooed . | . . . . Parts Field Recycled . | . . . . Retrieved Matter . | . . . . Parts Self-Destructed 12 | . . 12 . Prevented . | . . . . Kills | -11 -10 -10 -9 ------- Run | Yrd Mat Sub Rec Combat Hostiles Destroyed 20 | . 5 11 4 Melee 1 | . . . 1 Guns 17 | . 3 11 3 AOE 2 | . 2 . . Classes Destroyed 6 | . 3 3 . Operator 1 | . 1 . . Turret 2 | . . 2 . Swarmer 8 | . 3 5 . Grunt 3 | . 2 1 . Sentry 5 | . . 1 4 Subdweller 4 | . . 4 . Best Kill Streak 7 | . 4 7 1 Combat Bots Only 7 | . 3 7 1 Max Kills in Single Turn 4 | . 4 2 1 Gunslinging 1 | . . 1 . Exploded 2 | . 2 . . Melee 1 | . . . 1 Uniques/NPCs Destroyed . | . . . . Combat | -11 -10 -10 -9 -------- Run | Yrd Mat Sub Rec Hostile Shots Fired 195 | . 66 90 39 Missed 58 | . 19 32 7 Damage Taken 1564 | . 469 614 481 Core 251 | . 132 62 57 Absorbed by Shields . | . . . . Core Remaining (%) 100 | 100 . . . Volleys Fired 65 | . 18 30 17 Largest 2 | . 2 2 1 Hottest 54 | . 50 54 30 Shots Fired 104 | . 33 54 17 Gun 98 | . 32 49 17 Cannon . | . . . . Launcher 6 | . 1 5 . Special . | . . . . Kinetic 98 | . 32 49 17 Thermal . | . . . . Explosive 6 | . 1 5 . Electromagnetic . | . . . . Robot Hit Streak 17 | . 5 11 17 Robot Miss Streak 12 | . 3 12 2 Penetration Max . | . . . . Secondary Targets 1 | . . 1 . Max Gunslinging Chain 1 | . . 1 . Shots Hit Robots 77 | . 15 41 21 Core Hits 43 | . 11 23 9 Critical Kills 1 | . . . 1 Critical Parts Destroyed . | . . . . Critical Strikes 1 | . . . 1 Smash 1 | . . . 1 Melee Attacks 34 | . . 30 4 Impact 34 | . . 30 4 Slashing . | . . . . Piercing . | . . . . Sneak Attacks 1 | . . . 1 Combat Hostiles 1 | . . . 1 Follow-up Attacks . | . . . . Damage Inflicted 1408 | . 259 691 458 Guns 1146 | . 163 618 365 Cannons . | . . . . Explosions 169 | . 96 73 . Melee 93 | . . . 93 Ramming . | . . . . Kinetic 1146 | . 163 618 365 Thermal . | . . . . Explosive 169 | . 96 73 . Electromagnetic . | . . . . Impact 93 | . . . 93 Slashing . | . . . . Piercing . | . . . . Highest Corruption . | . . . . Average Corruption . | . . . . Corruption Purged . | . . . . Corruption Blocked . | . . . . Overload Shots . | . . . . Overflow Damage 9 | . 9 . . Projectiles . | . . . . Explosions 9 | . 9 . . Melee . | . . . . Knockbacks . | . . . . Impact . | . . . . Kinetic . | . . . . Secondary . | . . . . Self-Inflicted Damage 23 | . . 23 . Shots 1 | . . 1 . Rammed . | . . . . Targets Rammed . | . . . . Kicked . | . . . . Crushed . | . . . . Highest Temperature 36 | . 36 1 27 Average Temperature 9 | . 8 1 10 Received Heat Transfer 519 | . 114 234 171 Siege Activations . | . . . . Robots Corrupted . | . . . . Combat Hostiles . | . . . . Parts Fried . | . . . . Impact Corruptions . | . . . . Robots Melted . | . . . . Combat Hostiles . | . . . . Parts Melted . | . . . . Heat Transferred . | . . . . Parts Sabotaged . | . . . . Parts Stolen . | . . . . Parts Stripped . | . . . . Power Chain Reactions . | . . . . Alert | -11 -10 -10 -9 ------- Run | Yrd Mat Sub Rec Peak Influence 181 | . 128 . 181 Initial 120 | . . . 120 Average 83 | . 69 . 104 Maximum Alert Level . | . . . . Low Security (%) 100 | 100 100 . 100 Level 1 . | . . . . Level 2 . | . . . . Level 3 . | . . . . Level 4 . | . . . . Level 5 . | . . . . High Security . | . . . . Max Security . | . . . . Squads Dispatched . | . . . . Investigation . | . . . . Extermination . | . . . . Reinforcement . | . . . . Assault . | . . . . Garrison . | . . . . Intercept . | . . . . Searches Triggered . | . . . . Construction Impeded . | . . . . Haulers Reinforced . | . . . . Active Scanning Responses . | . . . . Cargo Convoy Interrupts . | . . . . Stealth | -11 -10 -10 -9 --------- Run | Yrd Mat Sub Rec Distress Signals . | . . . . Communications Jammed . | . . . . Distress Signals . | . . . . Times Spotted 30 | . 6 16 8 Peak Tracking Total 5 | . 4 5 3 Tactical Retreats 3 | . . 3 . Traps | -11 -10 -10 -9 ------- Run | Yrd Mat Sub Rec Traps Triggered . | . . . . Indirectly . | . . . . Trap Hack Attempts . | . . . . Triggered . | . . . . Disarmed . | . . . . Reprogrammed . | . . . . Reused . | . . . . Traps Extracted . | . . . . Installed . | . . . . Triggered . | . . . . Machines | -11 -10 -10 -9 ---------- Run | Yrd Mat Sub Rec Machines Disabled 3 | . . 3 . Max in Single Turn 2 | . . 2 . Machines Repaired . | . . . . Machines Dismantled . | . . . . Machines Sabotaged . | . . . . Overloaded Fab Kills . | . . . . Hacking | -11 -10 -10 -9 --------- Run | Yrd Mat Sub Rec Machines Accessed 5 | . 2 . 3 Terminals 5 | . 2 . 3 Fabricators . | . . . . Repair Stations . | . . . . Recycling Units . | . . . . Scanalyzers . | . . . . Garrison Access . | . . . . Total Hacks 22 | . 9 . 13 Successful 9 | . 3 . 6 Failed 13 | . 6 . 7 Catastrophic 1 | . . . 1 Database Lockouts . | . . . . Manual 21 | . 9 . 12 Terminals 22 | . 9 . 13 Fabricators . | . . . . Repair Stations . | . . . . Recycling Units . | . . . . Scanalyzers . | . . . . Garrison Access . | . . . . Terminal Hacks 4 | . 1 . 3 Branch Access Points 1 | . . . 1 Zone Layout 3 | . 1 . 2 Fabricator Hacks . | . . . . Repair Station Hacks . | . . . . Recycling Unit Hacks . | . . . . Scanalyzer . | . . . . Garrison Access Hacks . | . . . . Unauthorized Hacks 5 | . 2 . 3 Terminals 5 | . 2 . 3 Botnet 5 | . 2 . 3 Fabricators . | . . . . Repair Stations . | . . . . Recycling Units . | . . . . Scanalyzers . | . . . . Garrison Access . | . . . . Data Cores Recovered . | . . . . Used . | . . . . Hacking Detections 5 | . 2 . 3 Full Trace Events . | . . . . Feedback Events . | . . . . Feedback Blocked . | . . . . Robot Schematics Acquired . | . . . . Robots Built . | . . . . Authchips . | . . . . Time . | . . . . Total Robot Build Rating . | . . . . Part Schematics Acquired . | . . . . Parts Built . | . . . . Authchips . | . . . . Time . | . . . . Total Part Build Rating . | . . . . Parts Repaired . | . . . . Time . | . . . . Parts Recycled . | . . . . Recycled Matter . | . . . . Retrieved Matter . | . . . . Retrieved Components . | . . . . Parts Scanalyzed . | . . . . Part Schematics Acquired . | . . . . Parts Damaged . | . . . . Bothacking | -11 -10 -10 -9 ------------ Run | Yrd Mat Sub Rec Used RIF Installer . | . . . . Robots Hacked . | . . . . Non-combat . | . . . . Combat . | . . . . Robot Hacks Applied . | . . . . Relay Couplers Released . | . . . . Fabnet Peak Effective % . | . . . . Robots Rewired . | . . . . Allies Hacked . | . . . . Hacks Repelled . | . . . . Allies | -11 -10 -10 -9 -------- Run | Yrd Mat Sub Rec Total Allies . | . . . . Largest Group . | . . . . Highest-Rated Group . | . . . . Highest-Rated Ally . | . . . . Total Orders . | . . . . Ally Attacks . | . . . . Total Damage . | . . . . Kills . | . . . . Allies Corrupted . | . . . . Allies Melted . | . . . . Intel | -11 -10 -10 -9 ------- Run | Yrd Mat Sub Rec Robot Analysis Total . | . . . . Derelict Logs Recovered . | . . . . Drone Launches . | . . . . Drone Recoveries . | . . . . Exploration | -11 -10 -10 -9 ------------- Run | Yrd Mat Sub Rec Turns Passed 2435 | 55 592 1189 599 Spaces Moved 1107 | 42 110 619 336 Core 4 | 4 . . . Treads 1032 | . 77 619 336 Legs . | . . . . Wheels 71 | 38 33 . . Hover . | . . . . Flight . | . . . . Fastest Speed 50 | 50 100 160 160 Average Speed 155 | 95 142 160 160 Slowest Speed 160 | 100 160 160 160 Overloaded Moves . | . . . . Propulsion Burnouts . | . . . . Robots Hopped . | . . . . Cave-ins Triggered . | . . . . Exploration Rate (%) 31 | 3 18 41 62 Regions Visited 3 Branch Regions 2 Pre-discovered Areas . | . . . . Known Exits Taken . | . . . . Unknown Exits Taken 3 | 1 1 1 . Scrap Searched 10 | . . 10 . Spaces Dug 3 | . . 3 . Terrain Destroyed 26 | . 12 14 . Melee 3 | . . 3 . Projectile . | . . . . AOE 23 | . 12 11 . Terrain Rammed . | . . . . Walls Destroyed . | . . . . Machines Disabled . | . . . . Actions | -11 -10 -10 -9 --------- Run | Yrd Mat Sub Rec Total 1662 | 54 520 715 373 Wait 371 | . 369 . 2 Move 1104 | 41 109 618 336 Hop . | . . . . Pick Up 23 | 7 7 9 . Fast Attach 11 | 5 4 1 1 Attach 7 | 1 3 2 1 Detach 4 | . 4 . . Swap 20 | . . 12 8 Drop 23 | . 6 13 4 Fire 65 | . 18 30 17 Melee 34 | . . 30 4 Ram . | . . . . Kick . | . . . . Crush . | . . . . Escape Stasis . | . . . . Rewire . | . . . . Trap . | . . . . Miscellaneous . | . . . . Route ------- -11/Scrapyard -10/Materials -10/Subcaves (discovered 3 exits: [*Mat x2] / *Rec) -9/Recycling (discovered 1 exit: [*Fac]) History --------- Turn | Location | Event 18 | -11/Scrapyard | Discovered new exit (range 15) 56 | -11/Scrapyard | Entered Materials 143 | -10/Materials | Core integrity fell below 50% 309 | -10/Materials | Build established: Mutant 629 | -10/Materials | Discovered new exit (range 6) 648 | -10/Materials | Entered Subcaves 717 | -10/Subcaves | Shifting Twisted Machinery released Spk. Treads 794 | -10/Subcaves | Shifting Twisted Machinery released Mak. Shrapnel Gun 796 | -10/Subcaves | Shifting Twisted Machinery released Mak. Shrapnel Gun 1087 | -10/Subcaves | Shifting Twisted Machinery released Scrap Shield 1096 | -10/Subcaves | Shifting Twisted Machinery released Mak. Light Armor Plating 1195 | -10/Subcaves | Discovered new exit (range 7) 1480 | -10/Subcaves | Build established: Derelict-Mutant 1561 | -10/Subcaves | Discovered new exit (range 15) 1631 | -10/Subcaves | Discovered new exit (range 13) 1635 | -10/Subcaves | Destroyed 7 combat bots 1837 | -10/Subcaves | Entered Recycling 2197 | -9/Recycling | Core integrity fell below 20% 2327 | -9/Recycling | Discovered new exit (range 15) 2436 | -9/Recycling | Destroyed by P-60 Hacker with Shock Rifle Last Messages --------------- 02279_ R-06 Scavenger collects Lgt. Treads. 02283_ Acquired 10 matter. 02309_ Dropped Sml. Storage Unit. 02313_ R-06 Scavenger collects Sml. Storage Unit. 02327_ EXIT=FOUND 02415_ Connecting with Terminal... >>Layout(Zone) Retrieving Zone 9T layout... Downloaded map data. >>Trojan(Botnet) Trojan loaded successfully. Testing... Terminal linked with 2 systems. Awaiting botnet instructions. 02435_ D-53 Grenadier springs to life. 02435_ T-07 Excavator destroyed. 02435_ Y-45 Defender destroyed. 02435_ K-01 Serf destroyed. 02436_ Y-45 Defender springs to life. 02436_ P-60 Hacker springs to life. Map ----- +----------------------------------------------------+ | ?????????????????????????????????????????????????? | | ?????????????????????????????????????????????????? | | ?????????????????????????????????????????????????? | | ?????????????????????????????????????????????????? | | ?????????????????????????????????????????????????? | | ?????????????????????# ##### ????????????????? | | ?????????????????????## #???# ????????????????? | | ??????????????????????# #???#" "????????????????? | | ??????????????????????# #???#""""????????????????? | | ???????????????????##############????????????????? | | ???????????????????# #?????????????????????? | | ???????????????????# #?????????????????????? | | ##############?????# #?????????????????????? | | #?????# #?????????????????????? | | ##?????####+####?????????????????????? | | #????????# #????????????????????????? | | ##????????# #????????????????????????? | | #####+#######?????????# #????????????????????????? | | ## %#????????#####??#+########?????????????????? | | # ###??????#"""#??# %u!a #?????????????????? | | ## ""#?######"T"#### g u ##????????????????? | | ## Y"#?# ## pk !# ????????????????? | | ##### ""#?# ##%= kt # ????????????????? | | #?# ###?# """ # tp% sgY # ????????????????? | | #?# #???# """ # %[ g% # ????????????????? | | ### #???# """ # i@ # ????????????????? | | ##### ##gY* d # ????????????????? | | # = %! # ????????????????? | | #### # ### ????????????????? | | ##?# ###+#### ######?# ????????????????? | | #?# + #?# #??????# ????????????????? | | ##?# # #?# #??????# ????????????????? | | #??# # ### ######## ????????????????? | | #####??# # + ????????????????? | | ??######+#### ######+##+## ###????????????????? | | ?? #??# #?# # ""#????????????????? | | ??????? ????????????????????????????????????????? | | ??????? ????????????????????????????????????????? | | ??????? ????????????????????????????????????????? | | ??????? ????????????????????????????????????????? | | ?????? ????????????????????????????????????????? | | ?????? ????????????????????????????????????????? | | ??????? ????????????????????????????????????????? | | ?????????????????????????????????????????????????? | | ?????????????????????????????????????????????????? | | ?????????????????????????????????????????????????? | | ?????????????????????????????????????????????????? | | ?????????????????????????????????????????????????? | | ???????###########+############ ???????????? | | ??????? #?# #????# ???????????? | +----------------------------------------------------+ Best States ------------- Heat Dissipation 39 Energy Generation 14 Energy Capacity 265 Matter Stores 300 Matter Capacity 300 Sight Range 16 Terrain Scan Density 10 Armor Coverage 100 Power Shielding 33 Weapon Shielding 33 Evasion (%) 40 Recoil Reduction 2 Item Schematics ----------------- None Robot Schematics ------------------ None Fabricated ------------ Nothing Alien Tech Used ----------------- None Achievements -------------- None Challenges ------------ None Game ------ Seed PointBattleBeamcaster Manual? 0 Play Time 00:22:00 Cumulative 67.9 hours Start 2025.03.12 @ 17:38:09 End 2025.03.12 @ 17:57:58 Sessions 1 Manual Loads 0 Difficulty Rogue Special Mode None Game No. 73 Rogue 73 Adventurer 0 Explorer 0 Win Type - Total 2 Types 2/0/0/0/0/0/0/0/0 Lore% 40 Gallery% 43 Achievement% 39 Wizard Run 0 Options --------- Layout 0 ASCII 0 Keyboard 1 Movement Numpad Keybinds 0 Fullscreen 1 Font 24/Terminus Map View 76x50 Zoom Use 0% Tactical HUD 1 Map Filters NONE Filters NONE Steam 1 RUN: 699f7aa1-948a-444a-83cf-6eed471fe664